fUSD/lending_fUSD_20260525
["ID","MTS","AMOUNT","RATE_DAILY","PERIOD"]
[422955191,1779672641000,-500.0,0.00013698,2]
[422955130,1779672641000,-731.39,0.00013698,2]
[422955136,1779672641000,-731.39,0.00013698,2]
[422955133,1779672641000,-731.39,0.00013698,2]
[422955132,1779672641000,-731.39,0.00013698,2]
[422955135,1779672641000,-731.39,0.00013698,2]
[422955131,1779672641000,-731.39,0.00013698,2]
[422955134,1779672641000,-731.39,0.00013698,2]
[422955137,1779672641000,-731.39,0.00013698,2]
[422955138,1779672641000,-500.0,0.00013698,2]
[422955139,1779672641000,-368.83189507,0.00013698,2]
[422955140,1779672641000,-500.0,0.00013698,2]
[422955157,1779672641000,-500.0,0.00013698,2]
[422955142,1779672641000,-500.0,0.00013698,2]
[422955144,1779672641000,-500.0,0.00013698,2]
[422955145,1779672641000,-500.0,0.00013698,2]
[422955146,1779672641000,-500.0,0.00013698,2]
[422955147,1779672641000,-500.0,0.00013698,2]
[422955148,1779672641000,-500.0,0.00013698,2]
[422955150,1779672641000,-279.52,0.00013698,2]
[422955149,1779672641000,-500.0,0.00013698,2]
[422955151,1779672641000,-500.0,0.00013698,2]
[422955152,1779672641000,-500.0,0.00013698,2]
[422955154,1779672641000,-500.0,0.00013698,2]
[422955153,1779672641000,-500.0,0.00013698,2]
[422955156,1779672641000,-500.0,0.00013698,2]
[422955141,1779672641000,-500.0,0.00013698,2]
[422955188,1779672641000,-500.0,0.00013698,2]
[422955164,1779672641000,-500.0,0.00013698,2]
[422955193,1779672641000,-500.0,0.00013698,2]
[422955225,1779672641000,-500.0,0.00013698,2]
[422955226,1779672641000,-500.0,0.00013698,2]
[422955228,1779672641000,-500.0,0.00013698,2]
[422955227,1779672641000,-500.0,0.00013698,2]
[422955235,1779672641000,-500.0,0.00013698,2]
[422955232,1779672641000,-500.0,0.00013698,2]
[422955229,1779672641000,-500.0,0.00013698,2]
[422955234,1779672641000,-500.0,0.00013698,2]
[422955233,1779672641000,-500.0,0.00013698,2]
[422955230,1779672641000,-500.0,0.00013698,2]
[422955236,1779672641000,-500.0,0.00013698,2]
[422955231,1779672641000,-500.0,0.00013698,2]
[422955238,1779672641000,-500.0,0.00013698,2]
[422955237,1779672641000,-500.0,0.00013698,2]
[422955240,1779672641000,-500.0,0.00013698,2]
[422955248,1779672641000,-500.0,0.00013698,2]
[422955247,1779672641000,-500.0,0.00013698,2]
[422955249,1779672641000,-500.0,0.00013698,2]
[422955246,1779672641000,-500.0,0.00013698,2]
[422955239,1779672641000,-500.0,0.00013698,2]
[422955243,1779672641000,-500.0,0.00013698,2]
[422955241,1779672641000,-500.0,0.00013698,2]
[422955244,1779672641000,-500.0,0.00013698,2]
[422955242,1779672641000,-500.0,0.00013698,2]
[422955245,1779672641000,-500.0,0.00013698,2]
[422955251,1779672641000,-500.0,0.00013698,2]
[422955192,1779672641000,-500.0,0.00013698,2]
[422955224,1779672641000,-500.0,0.00013698,2]
[422955219,1779672641000,-500.0,0.00013698,2]
[422955250,1779672641000,-500.0,0.00013698,2]
[422955220,1779672641000,-500.0,0.00013698,2]
[422955194,1779672641000,-454.50013012,0.00013698,2]
[422955195,1779672641000,-500.0,0.00013698,2]
[422955196,1779672641000,-500.0,0.00013698,2]
[422955197,1779672641000,-500.0,0.00013698,2]
[422955198,1779672641000,-500.0,0.00013698,2]
[422955199,1779672641000,-500.0,0.00013698,2]
[422955202,1779672641000,-500.0,0.00013698,2]
[422955221,1779672641000,-500.0,0.00013698,2]
[422955204,1779672641000,-500.0,0.00013698,2]
[422955203,1779672641000,-500.0,0.00013698,2]
[422955201,1779672641000,-500.0,0.00013698,2]
[422955205,1779672641000,-500.0,0.00013698,2]
[422955209,1779672641000,-500.0,0.00013698,2]
[422955200,1779672641000,-500.0,0.00013698,2]
[422955206,1779672641000,-500.0,0.00013698,2]
[422955218,1779672641000,-500.0,0.00013698,2]
[422955208,1779672641000,-500.0,0.00013698,2]
[422955223,1779672641000,-629.41487605,0.00013698,2]
[422955222,1779672641000,-500.0,0.00013698,2]
[422955252,1779672641000,-500.0,0.00013698,2]
[422955214,1779672641000,-500.0,0.00013698,2]
[422955216,1779672641000,-500.0,0.00013698,2]
[422955215,1779672641000,-500.0,0.00013698,2]
[422955213,1779672641000,-500.0,0.00013698,2]
[422955210,1779672641000,-500.0,0.00013698,2]
[422955211,1779672641000,-500.0,0.00013698,2]
[422955207,1779672641000,-500.0,0.00013698,2]
[422955217,1779672641000,-500.0,0.00013698,2]
[422955294,1779672642000,-500.0,0.00013698,2]
[422955292,1779672642000,-500.0,0.00013698,2]
[422955290,1779672642000,-500.0,0.00013698,2]
[422955291,1779672642000,-500.0,0.00013698,2]
[422955289,1779672642000,-579.67,0.00013698,2]
[422955284,1779672642000,-500.0,0.00013698,2]
[422955287,1779672642000,-579.67,0.00013698,2]
[422955282,1779672642000,-579.67,0.00013698,2]
[422955285,1779672642000,-579.67,0.00013698,2]
[422955286,1779672642000,-500.0,0.00013698,2]
[422955288,1779672642000,-500.0,0.00013698,2]
[422955293,1779672642000,-500.0,0.00013698,2]
[422955304,1779672642000,-500.0,0.00013698,2]
[422955296,1779672642000,-500.0,0.00013698,2]
[422955298,1779672642000,-500.0,0.00013698,2]
[422955297,1779672642000,-500.0,0.00013698,2]
[422955295,1779672642000,-500.0,0.00013698,2]
[422955300,1779672642000,-500.0,0.00013698,2]
[422955301,1779672642000,-500.0,0.00013698,2]
[422955303,1779672642000,-500.0,0.00013698,2]
[422955302,1779672642000,-500.0,0.00013698,2]
[422955311,1779672642000,-500.0,0.00013698,2]
[422955310,1779672642000,-500.0,0.00013698,2]
[422955305,1779672642000,-500.0,0.00013698,2]
[422955283,1779672642000,-500.0,0.00013698,2]
[422955299,1779672642000,-500.0,0.00013698,2]
[422955278,1779672642000,-579.67,0.00013698,2]
[422955266,1779672642000,-579.67,0.00013698,2]
[422955277,1779672642000,-500.0,0.00013698,2]
[422955308,1779672642000,-500.0,0.00013698,2]
[422955253,1779672642000,-500.0,0.00013698,2]
[422955254,1779672642000,-579.67,0.00013698,2]
[422955255,1779672642000,-500.0,0.00013698,2]
[422955256,1779672642000,-579.67,0.00013698,2]
[422955261,1779672642000,-500.0,0.00013698,2]
[422955260,1779672642000,-579.67,0.00013698,2]
[422955258,1779672642000,-579.67,0.00013698,2]
[422955259,1779672642000,-500.0,0.00013698,2]
[422955262,1779672642000,-579.67,0.00013698,2]
[422955257,1779672642000,-500.0,0.00013698,2]
[422955264,1779672642000,-579.67,0.00013698,2]
[422955281,1779672642000,-500.0,0.00013698,2]
[422955263,1779672642000,-500.0,0.00013698,2]
[422955267,1779672642000,-500.0,0.00013698,2]
[422955275,1779672642000,-500.0,0.00013698,2]
[422955270,1779672642000,-579.67,0.00013698,2]
[422955269,1779672642000,-500.0,0.00013698,2]
[422955272,1779672642000,-579.67,0.00013698,2]
[422955271,1779672642000,-500.0,0.00013698,2]
[422955273,1779672642000,-500.0,0.00013698,2]
[422955274,1779672642000,-579.67,0.00013698,2]
[422955268,1779672642000,-579.67,0.00013698,2]
[422955276,1779672642000,-579.67,0.00013698,2]
[422955279,1779672642000,-500.0,0.00013698,2]
[422955280,1779672642000,-579.67,0.00013698,2]
[422955265,1779672642000,-500.0,0.00013698,2]
[422955307,1779672642000,-500.0,0.00013698,2]
[422955306,1779672642000,-500.0,0.00013698,2]
[422955312,1779672642000,-500.0,0.00013698,2]
[422955340,1779672642000,-751.35,0.00013698,2]
[422955344,1779672642000,-751.35,0.00013698,2]
[422955345,1779672642000,-500.0,0.00013698,2]
[422955347,1779672642000,-500.0,0.00013698,2]
[422955346,1779672642000,-751.35,0.00013698,2]
[422955348,1779672642000,-751.35,0.00013698,2]
[422955350,1779672642000,-751.35,0.00013698,2]
[422955349,1779672642000,-417.04800652,0.00013698,2]
[422955351,1779672642000,-751.35,0.00013698,2]
[422955355,1779672642000,-500.0,0.00013698,2]
[422955354,1779672642000,-500.0,0.00013698,2]
[422955353,1779672642000,-500.0,0.00013698,2]
[422955352,1779672642000,-500.0,0.00013698,2]
[422955357,1779672642000,-500.0,0.00013698,2]
[422955359,1779672642000,-500.0,0.00013698,2]
[422955358,1779672642000,-500.0,0.00013698,2]
[422955368,1779672642000,-500.0,0.00013698,2]
[422955362,1779672642000,-500.0,0.00013698,2]
[422955360,1779672642000,-500.0,0.00013698,2]
[422955361,1779672642000,-500.0,0.00013698,2]
[422955363,1779672642000,-500.0,0.00013698,2]
[422955364,1779672642000,-500.0,0.00013698,2]
[422955365,1779672642000,-624.92373812,0.00013698,2]
[422955367,1779672642000,-500.0,0.00013698,2]
[422955366,1779672642000,-500.0,0.00013698,2]
[422955369,1779672642000,-500.0,0.00013698,2]
[422955309,1779672642000,-500.0,0.00013698,2]
[422955342,1779672642000,-751.35,0.00013698,2]
[422955341,1779672642000,-500.0,0.00013698,2]
[422955356,1779672642000,-500.0,0.00013698,2]
[422955339,1779672642000,-500.0,0.00013698,2]
[422955314,1779672642000,-500.0,0.00013698,2]
[422955343,1779672642000,-500.0,0.00013698,2]
[422955313,1779672642000,-500.0,0.00013698,2]
[422955316,1779672642000,-500.0,0.00013698,2]
[422955315,1779672642000,-542.52692395,0.00013698,2]
[422955321,1779672642000,-500.0,0.00013698,2]
[422955317,1779672642000,-500.0,0.00013698,2]
[422955318,1779672642000,-500.0,0.00013698,2]
[422955319,1779672642000,-500.0,0.00013698,2]
[422955323,1779672642000,-241.06693824,0.00013698,2]
[422955322,1779672642000,-500.0,0.00013698,2]
[422955324,1779672642000,-751.35,0.00013698,2]
[422955325,1779672642000,-751.35,0.00013698,2]
[422955320,1779672642000,-500.0,0.00013698,2]
[422955335,1779672642000,-500.0,0.00013698,2]
[422955329,1779672642000,-751.35,0.00013698,2]
[422955327,1779672642000,-751.35,0.00013698,2]
[422955336,1779672642000,-751.35,0.00013698,2]
[422955330,1779672642000,-751.35,0.00013698,2]
[422955328,1779672642000,-751.35,0.00013698,2]
[422955333,1779672642000,-500.0,0.00013698,2]
[422955331,1779672642000,-500.0,0.00013698,2]
[422955338,1779672642000,-751.35,0.00013698,2]
[422955337,1779672642000,-500.0,0.00013698,2]
[422955334,1779672642000,-751.35,0.00013698,2]
[422955332,1779672642000,-751.35,0.00013698,2]
[422955326,1779672642000,-751.35,0.00013698,2]
[422955419,1779672643000,-1995.66,0.00013698,2]
[422955401,1779672643000,-1995.66,0.00013698,2]
[422955416,1779672643000,-2077.89,0.00013698,2]
[422955422,1779672643000,-1995.66,0.00013698,2]
[422955420,1779672643000,-1995.66,0.00013698,2]
[422955418,1779672643000,-1995.66,0.00013698,2]
[422955403,1779672643000,-2077.89,0.00013698,2]
[422955411,1779672643000,-2077.89,0.00013698,2]
[422955402,1779672643000,-2077.89,0.00013698,2]
[422955400,1779672643000,-1995.66,0.00013698,2]
[422955399,1779672643000,-1995.66,0.00013698,2]
[422955414,1779672643000,-2077.89,0.00013698,2]
[422955417,1779672643000,-1995.66,0.00013698,2]
[422955412,1779672643000,-1995.66,0.00013698,2]
[422955429,1779672643000,-1995.66,0.00013698,2]
[422955423,1779672643000,-1995.66,0.00013698,2]
[422955413,1779672643000,-2077.89,0.00013698,2]
[422955421,1779672643000,-1995.66,0.00013698,2]
[422955425,1779672643000,-1995.66,0.00013698,2]
[422955424,1779672643000,-1995.66,0.00013698,2]
[422955436,1779672643000,-491.34154668,0.00013698,2]
[422955426,1779672643000,-1995.66,0.00013698,2]
[422955439,1779672643000,-166.66,0.00013699,2]
[422955440,1779672643000,-257.52,0.00013699,2]
[422955428,1779672643000,-1995.66,0.00013698,2]
[422955427,1779672643000,-1995.66,0.00013698,2]
[422955431,1779672643000,-1995.86430945,0.00013698,2]
[422955430,1779672643000,-1995.66,0.00013698,2]
[422955405,1779672643000,-1995.66,0.00013698,2]
[422955415,1779672643000,-1995.66,0.00013698,2]
[422955398,1779672643000,-2077.89,0.00013698,2]
[422955377,1779672643000,-500.0,0.00013698,2]
[422955397,1779672643000,-1995.66,0.00013698,2]
[422955433,1779672643000,-500.0,0.00013698,2]
[422955372,1779672643000,-500.0,0.00013698,2]
[422955370,1779672643000,-500.0,0.00013698,2]
[422955376,1779672643000,-199.0,0.00013698,2]
[422955375,1779672643000,-500.0,0.00013698,2]
[422955371,1779672643000,-500.0,0.00013698,2]
[422955381,1779672643000,-500.0,0.00013698,2]
[422955374,1779672643000,-500.0,0.00013698,2]
[422955373,1779672643000,-500.0,0.00013698,2]
[422955379,1779672643000,-500.0,0.00013698,2]
[422955378,1779672643000,-199.0,0.00013698,2]
[422955380,1779672643000,-199.0,0.00013698,2]
[422955382,1779672643000,-199.0,0.00013698,2]
[422955383,1779672643000,-199.0,0.00013698,2]
[422955404,1779672643000,-1995.66,0.00013698,2]
[422955385,1779672643000,-199.0,0.00013698,2]
[422955387,1779672643000,-200.15781871,0.00013698,2]
[422955391,1779672643000,-2077.89,0.00013698,2]
[422955384,1779672643000,-500.0,0.00013698,2]
[422955389,1779672643000,-2077.89,0.00013698,2]
[422955388,1779672643000,-2077.89,0.00013698,2]
[422955390,1779672643000,-2077.89,0.00013698,2]
[422955392,1779672643000,-2077.89,0.00013698,2]
[422955393,1779672643000,-2077.89,0.00013698,2]
[422955394,1779672643000,-2077.89,0.00013698,2]
[422955395,1779672643000,-2077.89,0.00013698,2]
[422955396,1779672643000,-2077.89,0.00013698,2]
[422955406,1779672643000,-2077.89,0.00013698,2]
[422955408,1779672643000,-2077.89,0.00013698,2]
[422955410,1779672643000,-1995.66,0.00013698,2]
[422955386,1779672643000,-500.0,0.00013698,2]
[422955432,1779672643000,-500.0,0.00013698,2]
[422955458,1779672643000,-500.0,0.00013699,2]
[422955446,1779672643000,-178.83,0.00013699,2]
[422955487,1779672643000,-500.0,0.00013699,2]
[422955481,1779672643000,-500.0,0.00013699,2]
[422955483,1779672643000,-500.0,0.00013699,2]
[422955485,1779672643000,-500.0,0.00013699,2]
[422955491,1779672643000,-157.43547215,0.00013712,2]
[422955494,1779672643000,-157.43547215,0.00013741,2]
[422955497,1779672643000,-150.0,0.0001377,2]
[422955493,1779672643000,-150.0,0.00013738,2]
[422955495,1779672643000,-15191.59841545,0.00013745,2]
[422955496,1779672643000,-157.43547215,0.00013756,2]
[422955503,1779672643000,-157.43547215,0.00013829,2]
[422955492,1779672643000,-157.43547215,0.00013727,2]
[422955502,1779672643000,-157.43547215,0.00013814,2]
[422955499,1779672643000,-157.43547215,0.00013785,2]
[422955500,1779672643000,-157.43547215,0.000138,2]
[422955498,1779672643000,-157.43547215,0.0001377,2]
[422955501,1779672643000,-150.0,0.00013811,2]
[422955505,1779672643000,-166.66,0.00013836,2]
[422955504,1779672643000,-150.0,0.00013835,2]
[422955513,1779672643000,-150.0,0.00013931,2]
[422955509,1779672643000,-157.43547215,0.00013887,2]
[422955514,1779672643000,-150.0,0.00013931,2]
[422955506,1779672643000,-157.43547215,0.00013843,2]
[422955507,1779672643000,-157.43547215,0.00013858,2]
[422955508,1779672643000,-157.43547215,0.00013872,2]
[422955515,1779672643000,-150.0,0.00013931,2]
[422955516,1779672643000,-150.0,0.00013931,2]
[422955510,1779672643000,-157.43547215,0.00013901,2]
[422955443,1779672643000,-214.6,0.00013699,2]
[422955480,1779672643000,-500.0,0.00013699,2]
[422955488,1779672643000,-423.65188113,0.00013699,2]
[422955512,1779672643000,-157.43547215,0.00013916,2]
[422955486,1779672643000,-500.0,0.00013699,2]
[422955484,1779672643000,-500.0,0.00013699,2]
[422955455,1779672643000,-500.0,0.00013699,2]
[422955449,1779672643000,-894.2,0.00013699,2]
[422955453,1779672643000,-500.0,0.00013699,2]
[422955463,1779672643000,-500.0,0.00013699,2]
[422955462,1779672643000,-500.0,0.00013699,2]
[422955511,1779672643000,-500.0,0.00013907,2]
[422955460,1779672643000,-500.0,0.00013699,2]
[422955461,1779672643000,-500.0,0.00013699,2]
[422955459,1779672643000,-500.0,0.00013699,2]
[422955457,1779672643000,-500.0,0.00013699,2]
[422955464,1779672643000,-500.0,0.00013699,2]
[422955466,1779672643000,-500.0,0.00013699,2]
[422955465,1779672643000,-500.0,0.00013699,2]
[422955467,1779672643000,-500.0,0.00013699,2]
[422955451,1779672643000,-2500.0,0.00013699,2]
[422955471,1779672643000,-500.0,0.00013699,2]
[422955468,1779672643000,-500.0,0.00013699,2]
[422955478,1779672643000,-500.0,0.00013699,2]
[422955489,1779672643000,-500.0,0.00013699,2]
[422955479,1779672643000,-500.0,0.00013699,2]
[422955474,1779672643000,-500.0,0.00013699,2]
[422955470,1779672643000,-500.0,0.00013699,2]
[422955490,1779672643000,-500.0,0.00013699,2]
[422955475,1779672643000,-500.0,0.00013699,2]
[422955469,1779672643000,-500.0,0.00013699,2]
[422955477,1779672643000,-500.0,0.00013699,2]
[422955472,1779672643000,-500.0,0.00013699,2]
[422955473,1779672643000,-500.0,0.00013699,2]
[422955482,1779672643000,-500.0,0.00013699,2]
[422955476,1779672643000,-500.0,0.00013699,2]
[422955548,1779672644000,-157.43547215,0.00014105,2]
[422955554,1779672644000,-157.43547215,0.00014134,2]
[422955547,1779672644000,-827.18086267,0.00014105,2]
[422955549,1779672644000,-166.66,0.0001411,2]
[422955558,1779672644000,-157.43547215,0.00014149,2]
[422955546,1779672644000,-1400.52537883,0.00014105,2]
[422955552,1779672644000,-736.0,0.00014123,2]
[422955550,1779672644000,-157.43547215,0.0001412,2]
[422955560,1779672644000,-157.43547215,0.00014163,2]
[422955564,1779672644000,-440.744825,0.00014176,2]
[422955551,1779672644000,-150.0,0.00014123,2]
[422955565,1779672644000,-440.744825,0.00014176,2]
[422955566,1779672644000,-157.43547215,0.00014178,2]
[422955563,1779672644000,-440.744825,0.00014176,2]
[422955570,1779672644000,-150.0,0.00014219,2]
[422955562,1779672644000,-440.744825,0.00014176,2]
[422955567,1779672644000,-500.0,0.00014181,2]
[422955568,1779672644000,-157.43547215,0.00014193,2]
[422955569,1779672644000,-157.43547215,0.00014207,2]
[422955574,1779672644000,-166.66,0.00014247,2]
[422955573,1779672644000,-412.0,0.0001424,2]
[422955544,1779672644000,-150.0,0.00014091,2]
[422955571,1779672644000,-157.43547215,0.00014222,2]
[422955561,1779672644000,-150.0,0.00014171,2]
[422955556,1779672644000,-151.63,0.00014135,2]
[422955527,1779672644000,-503.97508657,0.0001399,2]
[422955543,1779672644000,-157.43547215,0.00014076,2]
[422955575,1779672644000,-150.0,0.00014251,2]
[422955517,1779672644000,-157.43547215,0.00013931,2]
[422955519,1779672644000,-157.43547215,0.0001396,2]
[422955522,1779672644000,-157.43547215,0.00013989,2]
[422955526,1779672644000,-19369.29764131,0.0001399,2]
[422955528,1779672644000,-250.0,0.00014,2]
[422955520,1779672644000,-166.66,0.00013973,2]
[422955521,1779672644000,-157.43547215,0.00013974,2]
[422955525,1779672644000,-500.0,0.00013989,2]
[422955523,1779672644000,-588.49,0.00013989,2]
[422955524,1779672644000,-500.0,0.00013989,2]
[422955529,1779672644000,-157.43547215,0.00014003,2]
[422955518,1779672644000,-157.43547215,0.00013945,2]
[422955530,1779672644000,-297.11,0.00014006,2]
[422955531,1779672644000,-731.39,0.00014006,2]
[422955532,1779672644000,-579.67,0.00014006,2]
[422955535,1779672644000,-157.43547215,0.00014018,2]
[422955538,1779672644000,-19471.48088338,0.00014033,2]
[422955540,1779672644000,-150.0,0.00014051,2]
[422955536,1779672644000,-150.0,0.00014027,2]
[422955533,1779672644000,-751.35,0.00014006,2]
[422955534,1779672644000,-2077.89,0.00014006,2]
[422955539,1779672644000,-157.43547215,0.00014047,2]
[422955537,1779672644000,-157.43547215,0.00014032,2]
[422955542,1779672644000,-157.43547215,0.00014062,2]
[422955545,1779672644000,-157.43547215,0.00014091,2]
[422955576,1779672644000,-157.43547215,0.00014251,2]
[422955594,1779672644000,-205.903696,0.00014345,2]
[422955581,1779672644000,-157.43547215,0.00014309,2]
[422955621,1779672644000,-482.06852688,0.00014455,2]
[422955618,1779672644000,-153.60079132,0.00014411,2]
[422955617,1779672644000,-155.157559,0.00014411,2]
[422955620,1779672644000,-157.43547215,0.00014411,2]
[422955619,1779672644000,-150.00000001,0.00014411,2]
[422955608,1779672644000,-157.43547215,0.00014353,2]
[422955610,1779672644000,-157.43547215,0.00014367,2]
[422955611,1779672644000,-157.43547215,0.00014382,2]
[422955613,1779672644000,-157.43547215,0.00014396,2]
[422955609,1779672644000,-225.739576,0.00014356,2]
[422955614,1779672644000,-150.0,0.00014411,2]
[422955616,1779672644000,-150.0,0.00014411,2]
[422955615,1779672644000,-150.0,0.00014411,2]
[422955624,1779672644000,-297.67,0.00014497,2]
[422955623,1779672644000,-1019.79,0.00014497,2]
[422955622,1779672644000,-19471.48088338,0.00014467,2]
[422955625,1779672644000,-754.29,0.00014497,2]
[422955627,1779672644000,-731.39,0.00014513,2]
[422955629,1779672644000,-731.39,0.00014513,2]
[422955628,1779672644000,-731.39,0.00014513,2]
[422955626,1779672644000,-20300.74,0.00014497,2]
[422955630,1779672644000,-731.39,0.00014513,2]
[422955631,1779672644000,-731.45,0.00014513,2]
[422955572,1779672644000,-157.43547215,0.00014236,2]
[422955612,1779672644000,-166.66,0.00014384,2]
[422955603,1779672644000,-370.175217,0.00014345,2]
[422955632,1779672644000,-579.67,0.00014513,2]
[422955601,1779672644000,-370.175217,0.00014345,2]
[422955600,1779672644000,-871.485589,0.00014345,2]
[422955577,1779672644000,-157.43547215,0.00014265,2]
[422955580,1779672644000,-157.43547215,0.00014295,2]
[422955578,1779672644000,-157.43547215,0.0001428,2]
[422955588,1779672644000,-157.43547215,0.00014338,2]
[422955595,1779672644000,-151.0,0.00014345,2]
[422955590,1779672644000,-157.174992,0.00014345,2]
[422955583,1779672644000,-150.0,0.00014315,2]
[422955586,1779672644000,-157.43547215,0.00014324,2]
[422955593,1779672644000,-205.903696,0.00014345,2]
[422955585,1779672644000,-15191.59841545,0.00014323,2]
[422955587,1779672644000,-350.0,0.00014329,2]
[422955579,1779672644000,-150.0,0.00014291,2]
[422955589,1779672644000,-157.174992,0.00014345,2]
[422955592,1779672644000,-157.174992,0.00014345,2]
[422955597,1779672644000,-151.0,0.00014345,2]
[422955607,1779672644000,-370.175217,0.00014345,2]
[422955598,1779672644000,-205.903696,0.00014345,2]
[422955596,1779672644000,-205.903696,0.00014345,2]
[422955602,1779672644000,-871.485589,0.00014345,2]
[422955599,1779672644000,-151.0,0.00014345,2]
[422955604,1779672644000,-871.485589,0.00014345,2]
[422955605,1779672644000,-370.175217,0.00014345,2]
[422955606,1779672644000,-871.485589,0.00014345,2]
[422955591,1779672644000,-157.174992,0.00014345,2]
[422955664,1779672645000,-500.0,0.00014613,2]
[422955666,1779672645000,-500.0,0.00014613,2]
[422955661,1779672645000,-500.0,0.00014613,2]
[422955660,1779672645000,-500.0,0.00014613,2]
[422955673,1779672645000,-151.0,0.00014614,2]
[422955663,1779672645000,-620.38,0.00014613,2]
[422955668,1779672645000,-1111753.4363925,0.00014614,2]
[422955662,1779672645000,-500.0,0.00014613,2]
[422955665,1779672645000,-500.0,0.00014613,2]
[422955667,1779672645000,-156.4,0.00014613,2]
[422955675,1779672645000,-151.0,0.00014614,2]
[422955671,1779672645000,-151.0,0.00014614,2]
[422955669,1779672645000,-151.0,0.00014614,2]
[422955674,1779672645000,-151.0,0.00014614,2]
[422955676,1779672645000,-157.174992,0.00014614,2]
[422955677,1779672645000,-157.174992,0.00014614,2]
[422955678,1779672645000,-157.174992,0.00014614,2]
[422955679,1779672645000,-157.174992,0.00014614,2]
[422955680,1779672645000,-205.903696,0.00014614,2]
[422955681,1779672645000,-205.903696,0.00014614,2]
[422955682,1779672645000,-151.0,0.00014614,2]
[422955656,1779672645000,-588.49,0.00014613,2]
[422955670,1779672645000,-151.0,0.00014614,2]
[422955659,1779672645000,-588.58,0.00014613,2]
[422955641,1779672645000,-751.57,0.00014513,2]
[422955657,1779672645000,-588.49,0.00014613,2]
[422955684,1779672645000,-151.0,0.00014614,2]
[422955634,1779672645000,-579.67,0.00014513,2]
[422955633,1779672645000,-579.67,0.00014513,2]
[422955635,1779672645000,-579.67,0.00014513,2]
[422955636,1779672645000,-579.75,0.00014513,2]
[422955638,1779672645000,-751.35,0.00014513,2]
[422955644,1779672645000,-2077.89,0.00014513,2]
[422955637,1779672645000,-751.35,0.00014513,2]
[422955639,1779672645000,-751.35,0.00014513,2]
[422955645,1779672645000,-2077.89,0.00014513,2]
[422955640,1779672645000,-751.35,0.00014513,2]
[422955646,1779672645000,-2078.11360477,0.00014513,2]
[422955642,1779672645000,-2077.89,0.00014513,2]
[422955643,1779672645000,-2077.89,0.00014513,2]
[422955647,1779672645000,-470.85,0.0001458,2]
[422955649,1779672645000,-350.0,0.00014598,2]
[422955650,1779672645000,-151.63,0.00014606,2]
[422955651,1779672645000,-151.0,0.00014611,2]
[422955652,1779672645000,-151.0,0.00014611,2]
[422955658,1779672645000,-588.49,0.00014613,2]
[422955648,1779672645000,-350.0,0.00014596,2]
[422955653,1779672645000,-588.49,0.00014613,2]
[422955654,1779672645000,-588.49,0.00014613,2]
[422955655,1779672645000,-588.49,0.00014613,2]
[422955683,1779672645000,-205.903696,0.00014614,2]
[422955672,1779672645000,-151.0,0.00014614,2]
[422955685,1779672645000,-151.0,0.00014614,2]
[422955714,1779672645000,-6406.76961144,0.00014874,2]